Workbook

Sheet Mulai
A2: Mulai menggunakan rumus
A3: Hanya dalam beberapa langkah, Anda akan siap menyusun rumus dan fungsi di Excel, aplikasi lembar bentang paling canggih di dunia.
A4: Kembali ke atas dengan menekan CTRL+HOME. Untuk memulai tur, tekan CTRL+PAGE DOWN.

Sheet Dasar-dasar
A1: Dasar-dasar: melakukan penghitungan matematika dengan Excel
A2: Anda dapat Menambahkan, Mengurangi, Mengalikan, dan Membagi di Excel tanpa menggunakan fungsi bawaan apa pun. Anda hanya perlu menggunakan beberapa operator dasar: +, -, *, /. Semua rumus diawali dengan tanda sama dengan (=). | C2: Angka untuk digunakan: | E2: Operasi: | F2: Rumus: | G2: Jawaban:
A3: Untuk Menambahkan, pilih sel F3, ketikkan =C3+C4, lalu tekan Enter. | C3: 1 | E3: Penambahan (+) | G3: =C3+C4 -> 3
A4: Untuk Mengurangi, pilih sel F4, ketikkan =C3-C4, lalu tekan Enter. | C4: 2 | E4: Pengurangan (-) | G4: =C3-C4 -> -1
A5: Untuk Mengalikan, pilih sel F5, ketikkan =C3*C4, lalu tekan Enter. | E5: Perkalian (*) | G5: =C3*C4 -> 2
A6: Untuk Membagi, pilih sel F6, ketikkan =C3/C4, lalu tekan Enter. | E6: Pembagian (/) | G6: =C3/C4 -> 0.5
A7: Tinjau ini: ubah angka di sel C3 dan C4, dan hasil rumus akan berubah secara otomatis. | E7: Pangkat (^) | G7: =C3^C4 -> 1
A8: LATIHAN TAMBAHAN: Anda dapat menerapkan pangkat dengan menggunakan simbol pangkat (^), seperti =A1^A2. Masukkan dengan menggunakan Shift+6. Di sel F7, masukkan =C3^C4.
A9: Jelajahi ke bawah untuk detail selengkapnya
A10: Langkah berikutnya
A11: Selengkapnya tentang rumus, sel, dan rentang
A12: Excel terdiri dari sel-sel individual yang dikelompokkan ke dalam baris dan kolom. Baris ditandai dengan angka, dan kolom ditandai dengan huruf. Ada lebih dari 1 juta baris dan 16.000 kolom, dan Anda dapat menerapkan rumus di setiap baris dan kolom.
A13: Rumus dapat berisi referensi sel, referensi rentang sel, operator, dan konstanta. Berikut semua contoh rumus: =A1+B1 =10+20 =SUM(A1:A10)
A14: Anda akan melihat bahwa di contoh ketiga di atas, kami menggunakan fungsi SUM. Fungsi adalah perintah bawaan yang mengambil nilai atau nilai-nilai, menghitungnya dengan cara tertentu, dan mengembalikan hasil. Sebagai contoh, fungsi SUM mengambil semua referensi sel atau rentang yang ditentukan, lalu menjumlahkannya. Dalam contoh ini, fungsi mengambil sel A1 hingga A10, lalu menjumlahkannya. Excel memiliki lebih dari 400 fungsi, yang dapat Anda temukan di tab Rumus.
A15: Rumus dengan fungsi dimulai dengan tanda sama dengan, lalu diikuti nama fungsi beserta argumennya (nilai yang digunakan fungsi untuk menghitung) yang dicantumkan di dalam tanda kurung.
A16: Anda mengonfirmasi rumus dengan menekan Enter. Setelah Anda melakukannya, rumus akan menghitung dan hasil akan ditampilkan dalam sel. Untuk melihat rumus, Anda dapat melihatnya di bilah rumus di bawah Pita, atau tekan F2 untuk masuk ke mode Edit, tempat Anda dapat melihat rumus dalam sel. Tekan kembali Enter untuk menyelesaikan rumus dan menghitung hasil.
A17: Beberapa penjelasan rumus
A18: =10+20 adalah sebuah rumus, sementara 10 dan 20 adalah konstanta dan tanda + adalah operator.
A19: =SUM(A1:A10) adalah sebuah rumus. SUM adalah nama fungsi, tanda kurung buka dan tutup berisi argumen rumus, dan A1:A10 adalah rentang sel untuk fungsi.
A20: =SUM(A1:A10;C1:C10) adalah sebuah rumus. SUM adalah nama fungsi, tanda kurung buka dan tutup berisi argumen rumus, dan A1:A10;C1:C10 adalah rentang sel untuk fungsi yang dipisahkan oleh tanda koma.
A21: PERLU DIKETAHUI: Konstanta adalah nilai yang Anda masukkan dalam sel atau rumus. Meskipun =10+20 memberikan hasil yang sama seperti =A1+B1, konstanta bukanlah praktik yang baik. Mengapa? Karena Anda tidak dapat melihat konstanta dengan mudah tanpa memilih sel dan mencarinya. Hal tersebut dapat sulit diubah nanti. Sebaiknya, letakkan konstanta dalam sel, tempat konstanta dapat disesuaikan dengan mudah dan direferensikan dalam rumus Anda. Contohnya: Pilih sel kuning yang berisi angka 12 di bawah. Anda akan melihat bahwa kami menggunakan fungsi SUM dengan rentang sel. Kami tidak mengetikkan "4" atau "8" secara langsung ke rumus.
A22: Sebelumnya
A23: Berikutnya
A24: Informasi selengkapnya di web
A25: Menggunakan Excel sebagai kalkulator
A26: Gambaran umum rumus di Excel
A27: Fungsi Excel (berdasarkan kategori)
A28: Fungsi Excel (sesuai abjad)
A29: Pelatihan online Excel gratis
J40: Nilai
J41: 4
J42: 8
J43: =SUM(J41:J42) -> 12

Sheet Pengenalan Fungsi-fungsi
A1: Pengenalan fungsi-fungsi
A2: Fungsi memungkinkan Anda melakukan berbagai hal, seperti melakukan operasi matematika, mencari nilai, bahkan menghitung tanggal dan waktu. Mari kita coba beberapa cara untuk menambahkan nilai dengan fungsi SUM. | C2: Buah | D2: Jumlah | F2: Daging | G2: Jumlah
A3: Di bawah kolom Jumlah untuk Buah (sel D7), masukkan =SUM(D3:D6), atau ketikkan =SUM( lalu pilih rentang dengan mouse, dan tekan Enter. Tindakan ini akan menjumlahkan nilai dalam sel D3, D4, D5, dan D6. Jawabannya adalah 170. | C3: Apel | D3: 50 | F3: Daging sapi | G3: 50
A4: Sekarang, mari kita coba AutoSum. Pilih sel di bawah kolom untuk Daging (sel G7), lalu masuk ke Rumus > AutoSum > pilih Jumlah. Anda akan melihat Excel memasukkan rumus secara otomatis. Tekan Enter untuk mengonfirmasinya. Fitur AutoSum memiliki semua fungsi paling umum. | C4: Jeruk | D4: 20 | F4: Ayam | G4: 30
A5: Berikut pintasan keyboard yang efektif. Pilih sel D15, lalu tekan Alt =, kemudian Enter. Pintasan ini akan memasukkan SUM secara otomatis. | C5: Pisang | D5: 60 | F5: Babi | G5: 10
A6: Jelajahi ke bawah untuk detail selengkapnya | C6: Lemon | D6: 40 | F6: Ikan | G6: 50
A7: LATIHAN TAMBAHAN Cobalah fungsi COUNT menggunakan salah satu metode yang telah Anda coba. Fungsi COUNT akan menghitung jumlah sel dalam rentang yang berisi angka. | C7: SUM > | D7: =SUM(D3:D6) -> 170 | F7: SUM >
A8: Langkah berikutnya
A9: Selengkapnya tentang fungsi | C9: Item | D9: Jumlah | F9: Item | G9: Jumlah
A10: Masuk ke tab Rumus dan telusuri Pustaka Fungsi, tempat fungsi dicantumkan berdasarkan kategori, seperti Teks, Tanggal & Waktu, dll. Sisipkan Fungsi memungkinkan Anda mencari fungsi berdasarkan nama dan meluncurkan panduan fungsi yang dapat membantu menyusun rumus. Saat Anda mulai mengetik nama fungsi setelah menekan =, Excel akan meluncurkan Intellisense, yang akan mencantumkan semua fungsi yang dimulai dengan huruf yang diketik. Saat Anda menemukan fungsi yang diinginkan, tekan Tab, dan Excel akan menyelesaikan nama fungsi dan memasukkan tanda kurung buka secara otomatis. Excel juga akan menampilkan argumen opsional dan yang diperlukan. Sekarang, mari kita lihat anatomi beberapa fungsi. Fungsi SUM memiliki struktur seperti berikut: | C10: Roti | D10: 50 | F10: Roti | G10: 50
A11: Jika fungsi SUM dapat berbicara, fungsi ini akan berkata, kembalikan jumlah semua nilai di sel D35 hingga D38, dan semua kolom H. SUM adalah nama fungsi, D35:D38 adalah argumen rentang pertama, yang hampir selalu diperlukan, dan H:H adalah argumen rentang kedua, yang dipisahkan oleh tanda koma. Sekarang, mari kita coba fungsi yang tidak memerlukan argumen apa pun. | C11: Donat | D11: 100 | F11: Donat | G11: 100
A12: Fungsi TODAY mengembalikan tanggal hari ini. Hasilnya akan secara otomatis diperbarui saat Excel menghitung ulang. | C12: Kue kering | D12: 40 | F12: Kue kering | G12: 40
A13: TINJAU INI Pilih sel-sel ini. Lalu, di sudut kanan bawah jendela Excel, cari SUM: 170 di bilah bagian bawah. Inilah yang disebut Bilah Status, dan bilah ini hanyalah cara lain untuk menemukan dengan cepat total dan detail lain tentang suatu sel atau rentang yang dipilih. | C13: Kue keik | D13: 50 | F13: Kue keik | G13: 50
A14: DETAIL PENTING Klik ganda sel ini. Anda akan melihat angka 100 mendekati bagian akhir. Meskipun angka dapat dimasukkan dalam rumus seperti ini, kami tidak menyarankannya kecuali benar-benar diperlukan. Hal ini dikenal sebagai konstanta, dan kita mudah lupa bahwa konstanta itu ada. Sebaiknya Anda mengacu ke sel lain, seperti sel F51. Dengan demikian, konstanta akan mudah dilihat dan tidak tersembunyi dalam rumus. | C14: Pai | D14: 20 | F14: Pai | G14: 20
A15: Informasi selengkapnya di web | C15: SUM > | F15: COUNT >
A16: Semua tentang fungsi SUM
A17: Menggunakan AutoSum untuk menjumlah angka
A18: Semua tentang fungsi COUNT
A19: Pelatihan online Excel gratis
A20: Kembali ke atas
A21: Langkah berikutnya
C34: Buah | D34: Jumlah
C35: Apel | D35: 50
C36: Jeruk | D36: 20
C37: Pisang | D37: 60
C38: Lemon | D38: 40
C39: SUM > | D39: =SUM(D35:D38) -> 170
C44: Item | D44: Jumlah
C45: Mobil | D45: 20
C46: Truk | D46: 10
C47: Sepeda | D47: 10
C48: Sepatu seluncur | D48: 40
D50: Total: | F50: Nilai Tambahan | G50: Total Baru
D51: =SUM(D45:D48,100) -> 180 | F51: 100 | G51: =SUM(D45:D48,F51) -> 180

Sheet AVERAGE
A1: Fungsi AVERAGE
A2: Gunakan fungsi AVERAGE untuk mendapatkan rata-rata angka dalam rentang sel. | C2: Buah | D2: Jumlah | F2: Daging | G2: Jumlah
A3: Pilih sel D7, lalu gunakan AutoSum untuk menambahkan fungsi AVERAGE. | C3: Apel | D3: 50 | F3: Daging sapi | G3: 50
A4: Sekarang, pilih sel G7, dan masukkan fungsi AVERAGE dengan mengetik =AVERAGE(G3:G6). | C4: Jeruk | D4: 20 | F4: Ayam | G4: 30
A5: Di sel D15, Anda dapat menggunakan AutoSum atau mengetik untuk memasukkan fungsi AVERAGE lainnya. | C5: Pisang | D5: 60 | F5: Babi | G5: 10
A6: TINJAU INI Pilih rentang angka apa pun, lalu lihat di Bilah Status untuk mendapatkan Rata-rata secara langsung. | C6: Lemon | D6: 40 | F6: Ikan | G6: 50
A7: Membuka lembar sebelumnya | C7: AVERAGE > | F7: AVERAGE >
A8: Masuk ke lembar berikutnya
A9: LATIHAN TAMBAHAN Cobalah menggunakan MEDIAN atau MODE di sini. MEDIAN memberikan nilai tengah dari kumpulan data, sementara MODE memberikan nilai yang paling sering muncul. | C9: Item | D9: Jumlah | F9: Item | G9: Jumlah
A10: Tautan untuk informasi selengkapnya di web | C10: Roti | D10: 50 | F10: Roti | G10: 50
A11: Pilih untuk mempelajari semua tentang fungsi AVERAGE di web | C11: Donat | D11: 100 | F11: Donat | G11: 100
A12: Pilih untuk mempelajari semua tentang fungsi MEDIAN di web | C12: Kue kering | D12: 40 | F12: Kue kering | G12: 40
A13: Pilih untuk mempelajari semua tentang fungsi MODE di web | C13: Kue keik | D13: 50 | F13: Kue keik | G13: 50
A14: Pilih untuk mempelajari tentang pelatihan Excel gratis di web | C14: Pai | D14: 20 | F14: Pai | G14: 20
C15: AVERAGE >

Sheet MIN & MAX
A1: Fungsi MIN dan MAX
A2: Gunakan fungsi MIN untuk mendapatkan angka minimum dalam suatu rentang sel. | C2: Buah | D2: Jumlah | F2: Daging | G2: Jumlah
A3: Gunakan fungsi MAX untuk mendapatkan angka maksimum dalam suatu rentang sel. | C3: Apel | D3: 50 | F3: Daging sapi | G3: 50
A4: Pilih sel D7, lalu gunakan Panduan AutoSum untuk menambahkan fungsi MIN. | C4: Jeruk | D4: 20 | F4: Ayam | G4: 30
A5: Sekarang, pilih sel G7, dan masukkan fungsi MAX dengan mengetik =MAX(G3:G6). | C5: Pisang | D5: 60 | F5: Babi | G5: 10
A6: Di sel D15, Anda dapat menggunakan Panduan AutoSum atau mengetik untuk memasukkan fungsi MIN atau MAX. | C6: Lemon | D6: 40 | F6: Ikan | G6: 50
A7: Informasi selengkapnya di web | C7: MIN > | F7: MAX >
A8: Semua tentang fungsi MIN
A9: Semua tentang fungsi MAX | C9: Item | D9: Jumlah | F9: Item | G9: Jumlah
A10: Pelatihan online Excel gratis | C10: Roti | D10: 50 | F10: Roti | G10: 50
A11: PERLU DIKETAHUI Anda dapat menggunakan MIN atau MAX dengan beberapa rentang atau nilai untuk memperlihatkan yang lebih besar atau yang lebih kecil dari nilai-nilai tersebut, seperti =MIN(A1:A10;B1:B10) atau =MAX(A1:A10;B1), dengan B1 berisi nilai ambang batas, seperti 10, yang dalam kasus ini rumus tidak akan mengembalikan nilai kurang dari 10. | C11: Donat | D11: 100 | F11: Donat | G11: 100
C12: Kue kering | D12: 40 | F12: Kue kering | G12: 40
C13: Kue keik | D13: 50 | F13: Kue keik | G13: 50
C14: Pai | D14: 20 | F14: Pai | G14: 20
C15: MIN atau MAX > | G15: =MIN(G10:G14,10) -> 10

Sheet Tanggal & Waktu
A1: Fungsi Tanggal
A2: Excel dapat memberikan tanggal saat ini, berdasarkan pengaturan kawasan komputer. Anda juga dapat menambahkan dan mengurangi Tanggal.
A3: Lihat fungsi TODAY yang memberi Anda tanggal Hari Ini. Ini adalah fungsi yang dinamis atau volatil, sehingga ketika Anda membuka buku kerja esok hari, tanggal akan berubah menjadi tanggal esok hari. Masukkan =TODAY() di sel D6.
A4: Mengurangi Tanggal - Masukkan tanggal ulang tahun Anda berikutnya dalam format DD/MM/YY di sel D7, dan Excel akan memberi tahu jumlah hari sebelum tanggal tersebut dengan menggunakan =D7-D6 di sel D8.
A5: Menambahkan Tanggal - Anggap saja Anda ingin mengetahui tanggal jatuh tempo sebuah tagihan atau tanggal Anda harus mengembalikan buku perpustakaan. Anda dapat menambahkan hari ke sebuah tanggal untuk mencari tahu. Di sel D10, masukkan jumlah hari sesuai keinginan. Di sel D11, kami menambahkan =D6+D10 untuk menghitung tanggal jatuh tempo dari hari ini. | C5: Fungsi Tanggal
A6: PERLU DIKETAHUI Excel mengatur tanggal dan waktu berdasarkan jumlah hari yang dimulai dari 1 Januari 1900. Waktu disimpan dalam bentuk pecahan dari sebuah hari berdasarkan menit. Oleh karena itu, 01/01/2017 12.30.00 disimpan sebagai 42736,5208. Jika Waktu atau Tanggal menunjukkan angka dalam format di atas, Anda dapat menekan Ctrl+1 > Angka > pilih format Tanggal atau Waktu. | C6: Tanggal hari Ini: | F6: =IF(D6=TODAY(),"Ini hasilnya!","") -> 
A7: DETAIL PENTING Jika tidak ingin Excel menampilkan angka negatif karena tanggal ulang tahun belum dimasukkan, Anda dapat menggunakan fungsi IF seperti ini: =IF(D7="";"";D7-D6), yang berarti, "Jika D7 sama dengan kosong, perlihatkan kosong, dan jika tidak, perlihatkan D7 dikurangi D6". | C7: Tanggal ulang tahun Anda:
A8: Fungsi Waktu | C8: Jumlah hari hingga tanggal ulang tahun Anda: | D8: =D7-D6 -> 0
A9: Excel dapat memberikan waktu saat ini, berdasarkan pengaturan kawasan komputer. Anda juga dapat menambahkan dan mengurangi waktu. Misalnya, Anda mungkin perlu mencatat jumlah jam kerja karyawan setiap minggunya, dan menghitung gaji serta lembur mereka.
A10: Di sel D28, masukkan =NOW(), yang akan memberikan waktu saat ini dan akan diperbarui setiap kali Excel menghitung. Jika perlu mengubah format Waktu, Anda dapat membuka Ctrl+1 > Angka > Waktu > Pilih format yang diinginkan. | C10: Masa tenggang:
A11: Menambahkan jam antar waktu - Di sel D36, kami telah memasukkan =((D35-D32)-(D34-D33))*24, yang menghitung jam masuk dan jam pulang kerja seseorang, lalu mengurangkan waktu makan siang mereka. *24 di bagian akhir rumus mengonversi bagian dari hari yang Excel anggap sebagai jam. Namun, Anda perlu memformat sel sebagai Angka. Untuk melakukannya, masuk ke Beranda > Format > Sel (Ctrl+1) > Angka > Angka > 2 desimal. | C11: Tagihan akan jatuh tempo pada: | D11: =D6+D10 -> 00:00:00
A12: Jika dapat berbicara, rumus akan berkata, "Kurangi Jam Selesai Kerja dengan Jam Mulai Kerja, lalu kurangi Jam Mulai Makan Siang dengan Jam Selesai Makan Siang, lalu kalikan dengan 24 untuk mengonversi waktu pecahan Excel menjadi jam", atau =((Jam Selesai Kerja - Jam Mulai Kerja)-(Selesai Makan Siang - Mulai Makan Siang))*24.
A13: Sebelumnya
A14: Berikutnya
A15: Informasi selengkapnya di web
A16: Semua tentang fungsi TODAY
A17: Semua tentang fungsi NOW
A18: Semua tentang fungsi DATE
A19: Pelatihan online Excel gratis
C27: Fungsi Waktu
C28: Waktu Saat Ini:
C31: Jam Kerja Harian
C32: Jam Mulai Kerja: | D32: 08:00:00
C33: Mulai Makan Siang: | D33: 12:00:00
C34: Selesai Makan Siang: | D34: 13:00:00
C35: Jam Selesai Kerja: | D35: 17:00:00
C36: Total Jam: | D36: =((D35-D32)-(D34-D33))*24 -> 8
C45: Tanggal dan Jam Statis
C46: Tanggal: | D46: 2017-09-27
C47: Waktu: | D47: 08:52:00

Sheet Menggabungkan teks dan angka
A1: Menggabungkan teks dari sel lain
A2: Saat bekerja di Excel, Anda sering kali ingin menggabungkan teks yang ada di sel lain. Ini contoh yang sangat umum: Anda memiliki nama depan dan belakang dan ingin menggabungkannya sebagai nama depan, nama belakang, atau nama lengkap. Untungnya, Excel memungkinkan Anda melakukannya dengan simbol “dan” (&), yang dapat dimasukkan menggunakan Shift+7. | C2: Nama Depan | D2: Nama Belakang | E2: Nama Belakang, Nama Depan | F2: Nama Lengkap
A3: Di sel E3, masukkan =D3&C3 untuk menggabungkan nama depan dan belakang. | C3: Nadia | D3: Susilawati | E3: =D3&", "&C3 -> Susilawati, Nadia | F3: =C3&" "&D3 -> Nadia Susilawati
A4: SusilawatiNadia terlihat aneh. Kita perlu menambahkan tanda koma dan spasi. Untuk melakukannya, kita akan menggunakan tanda kutip untuk membuat string teks baru. Kali ini, masukkan =D3&", "&C3. Bagian &", "& memungkinkan kita menggabungkan tanda koma dan spasi dengan teks dalam sel. | C4: Andi | D4: Nurcahyo
A5: Untuk membuat nama lengkap, kita akan menggabungkan nama depan dan belakang, tetapi menggunakan spasi tanpa tanda koma. Di F3, masukkan =C3&" "&D3. | C5: Jan | D5: Krisna
A6: Jelajahi ke bawah untuk detail selengkapnya | C6: Maria | D6: Jamilah
A7: Berikutnya | C7: Supardi | D7: Triyono
A8: Menggunakan teks dan angka secara bersamaan | C8: Mursadi | D8: Nugroho
A9: Sekarang, kita akan menggunakan simbol & untuk menggabungkan teks dan angka, tidak hanya teks dan teks Lihat sel C28:D29. Lihat bagaimana tanggal dan waktu berada di sel yang terpisah? Anda dapat menggabungkannya dengan simbol & seperti yang dapat dilihat di sel C32:C33. Namun, hasilnya terlihat aneh, bukan? Sayangnya, Excel tidak mengetahui cara Anda ingin memformat angka, sehingga Excel akan menjabarkan angka ke format paling dasar, yaitu berupa tanggal Seri dalam hal ini. Kita perlu memberi tahu Excel dengan jelas tentang cara memformat bagian angka dari rumus tersebut, sehingga angka akan ditampilkan sesuai dengan keinginan Anda di string teks hasil. Anda dapat melakukannya dengan fungsi TEXT dan kode format. | C9: Riko | D9: Zainuddin
A10: Di sel C36, masukkan =C28&" "&TEXT(D28,"DD/MM/YYYY"). DD/MM/YYYY adalah kode format Indonesia untuk Hari/Bulan/Tahun, seperti 25/09/2017. | C10: Yuliana | D10: Marganingsih
A11: Di sel C37, masukkan =C29&" "&TEXT(D29,"H.MM.SS"). H.MM adalah kode format Indonesia untuk Jam:Menit, seperti 1.30.
A12: TINJAU INI Rumus, terutama yang panjang, terkadang sulit dibaca. Namun, Anda dapat memisahkan bagiannya dengan spasi seperti ini: =C28 & " " & TEXT(D28,"DD/MM/YYYY")
A13: PERLU DICOBA Jika tidak mengetahui kode format yang akan digunakan, Anda dapat menggunakan Ctrl+1 > Angka untuk memformat sel sesuai keinginan. Lalu, pilih opsi Suai. Anda dapat menyalin kembali kode format yang ditampilkan pada rumus.
A14: Informasi selengkapnya di web
A15: Semua tentang fungsi TEXT
A16: Menggabungkan teks dan angka
A17: Pelatihan online Excel gratis
C27: Menggunakan teks & angka
C28: Tanggal hari Ini: | D28: =TODAY() -> 2019-10-10
C29: Waktu saat ini: | D29: =NOW() -> 43748.5402
C31: Menggabungkan teks & angka
C32: =C28&" "&D28 -> Tanggal hari Ini: 43748
C33: =C29&" "&D29 -> Waktu saat ini: 43748,540197338
C35: Memformat teks & angka
C36: =C28 &" "& TEXT(D28,"DD/MM/YYYY") -> Tanggal hari Ini: 10/10/2019
C37: =C29&" "&TEXT(D29,"H.MM.SS") -> Waktu saat ini: 12.57.53

Sheet Pernyataan IF
A1: Pernyataan IF
A2: Pernyataan IF memungkinkan Anda untuk membuat perbandingan logis antar kondisi. Pernyataan IF secara umum berarti: jika sebuah kondisi benar, lakukan suatu hal, dan bila kondisi salah, lakukan hal lain. Rumus dapat mengembalikan teks, nilai, bahkan penghitungan lainnya.
A3: Di sel D9, masukkan =IF(C9="Apel";TRUE;FALSE). Jawaban yang benar adalah TRUE.
A4: Salin D9 ke D10. Jawaban di sini akan berupa FALSE karena jeruk bukan apel.
A5: Cobalah contoh lain dengan mengacu pada rumus di sel D12. Kami memulainya dengan =IF(C12<100;"Kurang dari 100";"Lebih dari atau sama dengan 100"). Apa yang akan terjadi jika Anda memasukkan angka yang lebih besar dari 100 di sel C12?
A6: DETAIL PENTING TRUE dan FALSE tidak seperti kata-kata lain dalam rumus Excel karena kata-kata ini tidak perlu ditulis dalam tanda kutip, dan Excel akan menulisnya dalam huruf besar secara otomatis. Angka juga tidak perlu ditulis dalam tanda kutip. Teks biasa, seperti Ya atau Tidak perlu ditulis dalam tanda kutip seperti ini: =IF(C9="Apel";"Ya";"Tidak")
A7: Gulir ke bawah untuk detail selengkapnya
A8: Berikutnya | C8: Pernyataan IF
A9: Pernyataan IF dengan fungsi lain | C9: Apel
A10: Pernyataan IF juga dapat menjalankan penghitungan tambahan jika kondisi tertentu terpenuhi. Di sini, kita akan mengevaluasi sel untuk mengetahui apakah Pajak Penjualan harus dibebankan, dan menghitungnya jika kondisi tersebut benar. | C10: Jeruk
A11: Di sel F33, kami telah memasukkan =IF(E33="Ya";F31*PajakPenjualan;0). Kami juga telah menetapkan PajakPenjualan sebagai Rentang Bernama dengan nilai sebesar 0,0825. Rumus kami berarti: Jika sel E33 sama dengan Ya, kalikan sel F31 dengan PajakPenjualan, dan jika tidak, kembalikan 0. Cobalah mengubah Ya ke Tidak di sel E33 untuk melihat perubahan penghitungan.
A12: Berikutnya, kami telah menambahkan pernyataan IF untuk menghitung pengiriman jika diperlukan. Di sel F35, Anda akan melihat =IF(E35="Ya";SUM(D28:D29)*1,25;0). Rumus ini berarti: "Jika sel E35 adalah Ya, ambil jumlah dari kolom Kuantitas dalam tabel di atas, lalu kalikan dengan 1,25, dan jika tidak, kembalikan 0". | C12: 50 | D12: =IF(C12<100,"Kurang dari 100","Lebih dari atau sama dengan 100") -> Kurang dari 100
A13: Berikutnya, ubah 1,25 dalam rumus di sel F35 ke "Pengiriman". Saat mulai mengetik, koreksi otomatis Excel akan menemukannya untuk Anda. Saat hal ini terjadi, tekan Tab untuk memasukkannya. Ini adalah Rentang Bernama, dan kami memasukkannya dari Rumus > Tentukan Nama. Kini, jika perlu mengubah biaya pengiriman, Anda hanya perlu melakukannya di satu tempat dan dapat menggunakan nama Pengiriman di mana pun dalam buku kerja.
A14: PERLU DIKETAHUI Ketika Anda membuat rumus, Excel akan secara otomatis menempatkan batas berwarna di sekitar rentang yang direferensikan dalam rumus, dan rentang yang terkait dalam rumus tersebut akan memiliki warna yang sama. Anda dapat melihatnya jika memilih sel F33, lalu menekan F2 untuk mengedit rumus.
A15: TIPS AHLI Rentang Bernama memungkinkan Anda untuk menentukan syarat atau nilai di satu tempat, lalu menggunakannya kembali di seluruh buku kerja. Anda dapat melihat semua rentang bernama dalam buku kerja ini dengan masuk ke Rumus > Pengelola Nama. Klik di sini untuk mempelajari selengkapnya.
A16: Sebelumnya
A17: Berikutnya
A18: Informasi selengkapnya di web
A19: Semua tentang fungsi IF
A20: Semua tentang fungsi IFS
A21: Pernyataan IF tingkat lanjut
A22: Pelatihan online Excel gratis
C27: Item | D27: Jumlah | E27: Biaya | F27: Total
C28: Barang A | D28: 2 | E28: Rp9.76 | F28: ='Pernyataan IF'!$E$28:$E$29*'Pernyataan IF'!$D$28:$D$29 -> Rp19.52
C29: Barang B | D29: 3 | E29: Rp3.42 | F29: ='Pernyataan IF'!$E$28:$E$29*'Pernyataan IF'!$D$28:$D$29 -> Rp10.26
D31: Sub-Total | E31: =SUM('Pernyataan IF'!$E$28:$E$29) -> Rp13.18 | F31: =SUM('Pernyataan IF'!F28:F29) -> Rp29.78
D33: Pajak Penjualan? | E33: Ya | F33: =IF(E33="Ya",F31*PajakPenjualan,0) -> Rp2.46
D35: Pengiriman? | E35: Ya | F35: =IF(E35="Ya",SUM(D28:D29)*1.25,0) -> Rp6.25
D37: Total | F37: =SUM(F33,F31,F35) -> Rp38.48

Sheet VLOOKUP
A1: VLOOKUP
A2: VLOOKUP adalah salah satu fungsi yang paling sering digunakan di Excel (dan salah satu favorit kami juga!). VLOOKUP memungkinkan Anda mencari nilai dalam kolom di sebelah kiri, lalu mengembalikan informasi di kolom lain di sebelah kanan jika kecocokan ditemukan. VLOOKUP dibaca:
A3: =VLOOKUP(A1,B:C,2,FALSE) -> 
A4: Apa yang ingin Anda cari?
A5: Jika menemukannya, berapa banyak kolom di sebelah kanan yang akan dicantumkan nilai?
A6: Di mana Anda ingin mencarinya?
A7: Apakah Anda menginginkan kecocokan yang sama atau hasil yang mendekati?
A8: Di sel D22, masukkan =VLOOKUP(C22;C17:D20;2;FALSE). Jawaban yang benar untuk Apel adalah 50. VLOOKUP mencari Apel, menemukannya, lalu berpindah satu kolom di sebelah kanan, dan mengembalikan jumlah.
A9: Sekarang, cobalah di bagian Daging, di sel G22. Rumus yang digunakan akan berupa =VLOOKUP(F22;F17:G20;2;FALSE).
A10: PERCOBAAN Cobalah memilih item yang berbeda dari daftar menurun. Anda akan melihat sel hasil langsung diperbarui dengan nilai baru.
A11: Jelajahi ke bawah untuk detail selengkapnya
A12: Berikutnya
A13: VLOOKUP dan #N/A
A14: Anda akan selalu menemui situasi ketika VLOOKUP tidak dapat menemukan yang dicari, dan mengembalikan kesalahan (#N/A). Terkadang, hal ini terjadi karena nilai pencarian tidak ada atau karena sel referensi belum memiliki nilai.
A15: Jika mengetahui bahwa nilai pencarian ada tetapi ingin menyembunyikan kesalahan apabila sel pencarian kosong, Anda dapat menggunakan pernyataan IF. Dalam hal ini, kami akan mencantumkan rumus VLOOKUP yang sudah ada dengan cara seperti ini dalam sel D43: =IF(C43="";"";VLOOKUP(C43;C37:D41;2;FALSE)) Rumus ini dibaca jika sel C43 sama dengan kosong (""), kembalikan kosong, dan jika tidak, kembalikan hasil VLOOKUP. Perhatikan tanda kurung tutup kedua di bagian akhir rumus. Tanda ini menutup pernyataan IF.
A16: Jika tidak yakin bahwa nilai pencarian ada tetapi tetap ingin menyembunyikan kesalahan #N/A, Anda dapat menggunakan sebuah fungsi untuk menangani kesalahan yang disebut IFERROR di sel G43: =IFERROR(VLOOKUP(F43;F37:G41;2;FALSE);""). IFERROR dibaca: jika VLOOKUP mengembalikan hasil valid, tampilkan hasil tersebut, dan jika tidak, tampilkan kosong (""). Kami menampilkan kosong di sini (""), tetapi Anda juga dapat menggunakan angka (0,1, 2, dst.) atau teks, seperti "Rumus salah". | C16: Buah | D16: Jumlah | F16: Daging | G16: Jumlah
A17: DETAIL PENTING IFERROR dikenal sebagai penutup kesalahan, yang berarti fungsi ini akan menyembunyikan kesalahan apa pun yang dihasilkan oleh rumus. Hal ini dapat menyebabkan masalah jika Excel memberikan pemberitahuan bahwa rumus Anda memiliki kesalahan yang perlu diperbaiki. Sebaiknya, jangan menambahkan penangan kesalahan ke rumus hingga Anda benar-benar yakin bahwa rumus bekerja dengan tepat. | C17: Apel | D17: 50 | F17: Daging sapi | G17: 50
A18: Sebelumnya | C18: Jeruk | D18: 20 | F18: Ayam | G18: 30
A19: Berikutnya | C19: Pisang | D19: 60 | F19: Babi | G19: 10
A20: Informasi selengkapnya di web | C20: Lemon | D20: 40 | F20: Ikan | G20: 50
A21: Semua tentang fungsi VLOOKUP
A22: Semua tentang fungsi INDEX/MATCH | C22: Apel | F22: Babi
A23: Semua tentang fungsi IFERROR
A24: Menggunakan PivotTable untuk menganalisis data lembar kerja
A25: Pelatihan online Excel gratis
C35: Jika fungsi SUM dalam sel D42 dapat berbicara, fungsi tersebut akan berkata: Jumlahkan nilai dalam sel D38, D39, D40, dan D41.
C36: Item | D36: Jumlah | F36: Item | G36: Jumlah
C37: Roti | D37: 50 | F37: Roti | G37: 50
C38: Donat | D38: 100 | F38: Donat | G38: 100
C39: Kue kering | D39: 40 | F39: Kue kering | G39: 40
C40: Kue keik | D40: 50 | F40: Kue keik | G40: 50
C41: Pai | D41: 20 | F41: Pai | G41: 20
D43: =VLOOKUP(C43,C37:D41,2,FALSE) ->  | F43: Kue | G43: =IFERROR(VLOOKUP(F43,F37:G41,2,FALSE),"") -> 

Sheet Fungsi Bersyarat
A1: Fungsi Bersyarat - SUMIF
A2: Fungsi bersyarat memungkinkan Anda menjumlahkan, menghitung rata-rata, menghitung, atau mendapatkan nilai min dan maks dari sebuah rentang berdasarkan kondisi tertentu atau kriteria yang ditentukan. Seperti, dari semua buah dalam daftar, berapa jumlah buah apel? Atau, ada berapa banyak jeruk jenis Florida? | C2: Buah | D2: Jumlah | F2: Buah | G2: Jenis | H2: Jumlah | Z2: Buah | AB2: Apel | AD2: Jeruk | AF2: Pisang | AH2: Lemon
A3: SUMIF memungkinkan Anda menjumlahkan dalam satu rentang berdasarkan kriteria tertentu yang dicari dalam rentang lain, seperti jumlah Apel yang dimiliki. Pilih sel D17, lalu ketikkan =SUMIF(C3:C14;C17;D3:D14). SUMIF memiliki struktur seperti ini: | C3: Apel | D3: 50 | F3: Apel | G3: Fuji | H3: 50 | Z3: Apel | AB3: Fuji | AD3: Florida | AF3: Cavendish | AH3: Rough
A4: =SUMIF(C3:C14,C17,D3:D14) -> 150 | C4: Jeruk | D4: 20 | F4: Jeruk | G4: Florida | H4: 20 | Z4: Jeruk | AB4: Honeycrisp | AD4: Navel | AF4: Lady Finger | AH4: Eureka
A5: Rentang apa yang ingin Anda lihat? | C5: Pisang | D5: 60 | F5: Pisang | G5: Cavendish | H5: 60 | Z5: Pisang
A6: Nilai (teks atau angka) apa yang ingin Anda cari? | C6: Lemon | D6: 40 | F6: Lemon | G6: Rough | H6: 40 | Z6: Lemon
A7: Untuk setiap kecocokan yang ditemukan, rentang apa yang ingin Anda jumlahkan? | C7: Apel | D7: 50 | F7: Apel | G7: Honeycrisp | H7: 50
A8: SUMIFS sama seperti SUMIF, tetapi fungsi ini memungkinkan Anda menggunakan beberapa kriteria. Dalam contoh ini, Anda dapat mencari Buah dan Jenis, bukan hanya berdasarkan Buah. Pilih sel H17, lalu ketikkan =SUMIFS(H3:H14;F3:F14;F17;G3:G14;G17). SUMIFS memiliki struktur seperti ini: | C8: Jeruk | D8: 20 | F8: Jeruk | G8: Navel | H8: 20
A9: =SUMIFS(H3:H14,F3:F14,F17,G3:G14,G17) -> 20 | C9: Pisang | D9: 60 | F9: Pisang | G9: Lady Finger | H9: 60
A10: Rentang apa yang ingin Anda jumlahkan? | C10: Lemon | D10: 40 | F10: Lemon | G10: Eureka | H10: 40
A11: Ini adalah rentang pertama untuk mencari kecocokan | C11: Apel | D11: 50 | F11: Apel | G11: Honeycrisp | H11: 50
A12: Ini adalah kriteria untuk kecocokan pertama | C12: Jeruk | D12: 20 | F12: Jeruk | G12: Navel | H12: 20
A13: Ini adalah rentang kedua untuk mencari kecocokan | C13: Pisang | D13: 60 | F13: Pisang | G13: Cavendish | H13: 60
A14: Ini adalah kriteria untuk kecocokan kedua | C14: Lemon | D14: 40 | F14: Lemon | G14: Eureka | H14: 40
A15: TIPS AHLI Setiap sel Buah dan Jenis memiliki daftar menurun tempat Anda dapat memilih buah-buahan yang berbeda. Cobalah, dan rumus akan diperbarui secara otomatis.
A16: Jelajahi ke bawah untuk detail selengkapnya | C16: Buah | D16: SUMIF | F16: Buah | G16: Jenis | H16: SUMIFS
A17: Langkah berikutnya | C17: Apel | F17: Jeruk | G17: Florida
A18: Fungsi Bersyarat - COUNTIF
A19: COUNTIF dan COUNTIFS memungkinkan Anda menghitung nilai dalam rentang berdasarkan kriteria tertentu. Fungsi ini sedikit berbeda dari fungsi IF dan IFS lainnya karena hanya memiliki rentang kriteria dan kriteria. Fungsi tersebut tidak mengevaluasi satu rentang, lalu melihat rentang lain untuk meringkas.
A20: Pilih sel D64, lalu ketikkan =COUNTIF(C50:C61;C64). COUNTIF memiliki struktur seperti berikut:
A21: =COUNTIF(C50:C61,C64) -> 3
A22: Rentang apa yang ingin Anda lihat?
A23: Nilai (teks atau angka) apa yang ingin Anda cari?
A24: COUNTIFS sama seperti SUMIF, tetapi fungsi ini memungkinkan Anda menggunakan beberapa kriteria. Dalam contoh ini, Anda dapat mencari Buah dan Jenis, bukan hanya berdasarkan Buah. Pilih sel H64, lalu ketikkan =COUNTIFS(F50:F61;F64;G50:G61;G64). COUNTIFS memiliki struktur seperti berikut:
A25: =COUNTIFS(F50:F61,F64,G50:G61,G64) -> 1
A26: Ini adalah rentang pertama untuk dihitung
A27: Ini adalah kriteria untuk kecocokan pertama
A28: Ini adalah rentang kedua untuk dihitung
A29: Ini adalah kriteria untuk kecocokan kedua
A30: Jelajahi ke bawah untuk detail selengkapnya
A31: Berikutnya
A32: Fungsi bersyarat lainnya
A33: Anda telah melihat SUMIF, SUMIFS, COUNTIF, dan COUNTIFS. Sekarang, Anda dapat mencoba fungsi lain, seperti AVERAGEIF/S, MAXIFS, MINIFS. Semua fungsi tersebut memiliki struktur yang sama, maka setelah menulis satu rumus, Anda cukup mengganti nama fungsi dengan fungsi yang diinginkan. Kami telah menulis semua fungsi yang diperlukan untuk sel E106, sehingga Anda dapat menyalin/menempelkan fungsi ini atau mencoba mengetiknya sendiri untuk praktik. SUMIF =SUMIF(C92:C103;C106;E92:E103) SUMIFS =SUMIFS(E92:E103;C92:C103;C106;D92:D103;D106) AVERAGEIF =AVERAGEIF(C92:C103;C106;E92:E103) AVERAGEIFS =AVERAGEIFS(E92:E103;C92:C103;C106;D92:D103;D106) COUNTIF =COUNTIF(C92:C103;C106) COUNTIFS =COUNTIFS(C92:C103;C106;D92:D103;D106) MAXIFS =MAXIFS(E92:E103;C92:C103;C106;D92:D103;D106) MINIFS =MINIFS(E92:E103;C92:C103;C106;D92:D103;D106)
A34: Jelajahi ke bawah untuk detail selengkapnya
A35: Berikutnya
A36: SUMIF dengan argumen nilai
A37: Berikut contoh fungsi SUMIF menggunakan tanda lebih besar daripada (>) untuk menemukan nilai yang lebih besar daripada jumlah tertentu:
A38: =SUMIF(D118:D122,">=50") -> 200
A39: Jumlahkan beberapa nilai berdasarkan kriteria ini:
A40: ...Telusuri sel-sel ini…
A41: …dan jika nilainya lebih besar dari 50, jumlahkan.
A42: CATATAN: Jika menggunakan banyak sekali rumus bersyarat, PivotTable adalah solusi yang lebih baik. Lihat artikel PivotTable ini untuk informasi selengkapnya.
A43: Informasi selengkapnya di web
A44: Semua tentang fungsi SUMIF
A45: Semua tentang fungsi SUMIFS
A46: Semua tentang fungsi COUNTIF
A47: Semua tentang fungsi COUNTIFS
A48: Semua tentang fungsi AVERAGEIF
A49: Semua tentang fungsi AVERAGEIFS | C49: Buah | D49: Jumlah | F49: Buah | G49: Jenis | H49: Jumlah
A50: Semua tentang fungsi MINIFS | C50: Apel | D50: 50 | F50: Apel | G50: Fuji | H50: 50
A51: Semua tentang fungsi MAXIFS | C51: Jeruk | D51: 20 | F51: Jeruk | G51: Florida | H51: 20
A52: Membuat daftar menurun | C52: Pisang | D52: 60 | F52: Pisang | G52: Cavendish | H52: 60
A53: Pelatihan online Excel gratis | C53: Lemon | D53: 40 | F53: Lemon | G53: Rough | H53: 40
A54: Kembali ke atas | C54: Apel | D54: 50 | F54: Apel | G54: Honeycrisp | H54: 50
A55: Berikutnya | C55: Jeruk | D55: 20 | F55: Jeruk | G55: Navel | H55: 20
C56: Pisang | D56: 60 | F56: Pisang | G56: Lady Finger | H56: 60
C57: Lemon | D57: 40 | F57: Lemon | G57: Eureka | H57: 40
C58: Apel | D58: 50 | F58: Apel | G58: Honeycrisp | H58: 50
C59: Jeruk | D59: 20 | F59: Jeruk | G59: Navel | H59: 20
C60: Pisang | D60: 60 | F60: Pisang | G60: Cavendish | H60: 60
C61: Lemon | D61: 40 | F61: Lemon | G61: Eureka | H61: 40
C63: Buah | D63: COUNTIF | F63: Buah | G63: Jenis | H63: COUNTIFS
C64: Apel | D64: =COUNTIF(C50:C61,C64) -> 3 | F64: Jeruk | G64: Florida | H64: =COUNTIFS(F50:F61,F64,G50:G61,G64) -> 1
C91: Buah | D91: Jenis | E91: Jumlah
C92: Apel | D92: Fuji | E92: 50
C93: Jeruk | D93: Florida | E93: 20
C94: Pisang | D94: Cavendish | E94: 60
C95: Lemon | D95: Rough | E95: 40
C96: Apel | D96: Honeycrisp | E96: 50
C97: Jeruk | D97: Navel | E97: 20
C98: Pisang | D98: Lady Finger | E98: 60
C99: Lemon | D99: Eureka | E99: 40
C100: Apel | D100: Honeycrisp | E100: 50
C101: Jeruk | D101: Navel | E101: 20
C102: Pisang | D102: Cavendish | E102: 60
C103: Lemon | D103: Eureka | E103: 40
C105: Buah | D105: Jenis | E105: Cobalah
C106: Lemon | D106: Eureka | E106: =AVERAGEIFS(E92:E103,C92:C103,C106,D92:D103,D106) -> 40
C117: Item | D117: Jumlah
C118: Roti | D118: 50
C119: Donat | D119: 100
C120: Kue kering | D120: 40
C121: Kue keik | D121: 50
C122: Pai | D122: 20
D123: =SUMIF(D118:D122,">=50") -> 200

Sheet Panduan Fungsi
A1: Pemandu Fungsi akan memandu Anda
A2: Jika mengetahui nama fungsi yang diinginkan tetapi tidak yakin cara menyusunnya, gunakan Panduan Fungsi untuk membantu Anda.
A3: Pilih sel D10, masuk ke Rumus > Sisipkan Fungsi > ketikkan VLOOKUP dalam kotak Cari fungsi, kemudian tekan Cari. Ketika Anda melihat VLOOKUP disorot, klik OK di bagian bawah. Saat Anda memilih fungsi dalam daftar, Excel akan menampilkan sintaksnya.
A4: Berikutnya, masukkan argumen fungsi di masing-masing kotak teks. Saat Anda memasukkan setiap argumen fungsi, Excel akan mengevaluasinya dan memperlihatkan hasilnya, dengan hasil akhir di bagian bawah. Saat Anda memasukkan setiap bagian, kriteria untuk setiap argumen dicantumkan di bagian bawah formulir. Tekan OK jika sudah selesai, dan Excel akan memasukkan rumus secara otomatis. | C4: Buah | D4: Jumlah
A5: TINJAU INI Rumus yang digunakan akan berupa =VLOOKUP(C10;C5:D8;2;FALSE) | C5: Apel | D5: 50
A6: PERLU DIKETAHUI Anda dapat mengetikkan referensi sel dan rentang atau memilihnya dengan mouse. | C6: Jeruk | D6: 20
A7: PERLU DIKETAHUI Saat Anda memasukkan setiap bagian argumen, deskripsi argumen akan ditampilkan di bagian bawah formulir, di atas hasil Rumus. | C7: Pisang | D7: 60
A8: Sebelumnya | C8: Lemon | D8: 40
A9: Berikutnya
A10: Informasi selengkapnya di web | C10: Apel | D10: =VLOOKUP(C10,C5:D8,2,FALSE) -> 50
A11: Gambaran umum rumus di Excel
A12: Fungsi Excel (berdasarkan kategori)
A13: Fungsi Excel (sesuai abjad)
A14: Pelatihan online Excel gratis

Sheet Kesalahan Rumus
A1: Memperbaiki kesalahan rumus
A2: Pada saat tertentu, Anda akan menemui rumus yang memiliki kesalahan, yang akan ditampilkan sebagai #ErrorName oleh Excel. Kesalahan dapat bermanfaat karena menunjukkan bahwa sesuatu tidak berjalan dengan benar. Namun, kesalahan dapat sulit untuk diperbaiki. Untungnya, ada beberapa opsi yang dapat membantu Anda menemukan sumber kesalahan dan memperbaikinya.
A3: Pemeriksaan kesalahan - Masuk ke Rumus > Pemeriksaan Kesalahan. Tindakan ini akan memuat dialog yang akan memberi tahu Anda penyebab umum kesalahan tertentu. Di sel D9, kesalahan #N/A terjadi karena tidak ada nilai yang cocok dengan "Apel". Anda dapat memperbaikinya dengan menggunakan nilai yang ada, menghilangkan kesalahan dengan IFERROR, atau mengabaikannya dan tahu bahwa kesalahan tersebut tidak akan terjadi saat Anda menggunakan nilai yang ada. | C3: Buah | D3: Jumlah
A4: Jika Anda mengklik Bantuan untuk Kesalahan ini, topik bantuan khusus untuk pesan kesalahan tersebut akan terbuka. Jika Anda mengklik Tampilkan Tahap Penghitungan, dialog Evaluasi Rumus akan dimuat. | C4: Apel | D4: 50
A5: Setiap kali Anda mengklik Evaluasi, Excel akan menelusuri bagian rumus satu per satu. Tindakan ini tidak akan memberi tahu mengapa kesalahan terjadi, tetapi akan menunjukkan letaknya. Dari sana, lihat topik bantuan untuk menyimpulkan apa yang salah dengan rumus Anda. | C5: Jeruk | D5: 20
A6: PERCOBAAN Apa yang salah di sini? Petunjuk: Kami mencoba menggunakan SUM untuk menjumlahkan semua item. | C6: Pisang | D6: 60
A7: PERLU DIKETAHUI Mengklik Opsi memungkinkan Anda menetapkan aturan ketika kesalahan di Excel ditampilkan atau diabaikan. | C7: Lemon | D7: 40
A8: Sebelumnya
A9: Berikutnya | C9: Apel1 | D9: =VLOOKUP(C9,C3:D7,2,FALSE) -> 
A10: Informasi selengkapnya di web
A11: Mendeteksi kesalahan dalam rumus
A12: Cara menghindari kesalahan rumus
A13: Mengevaluasi rumus bertumpuk satu demi satu
A14: Pelatihan online Excel gratis
C30: Buah | D30: Jumlah
C31: Apel | D31: 50
C32: Jeruk | D32: 20
C33: Pisang | D33: 60
C34: Lemon | D34: 40
C36: Total | D36: =sume(D31:D34) -> 

Sheet Pelajari selengkapnya
A1: Memiliki pertanyaan lain tentang Excel?
A2: Tekan ALT+Q dan ketikkan hal yang ingin Anda ketahui.
A3: Lanjutkan. Ada lebih banyak lagi yang dapat dipelajari dengan Excel:
A4: Komunitas: Ajukan pertanyaan dan terhubunglah dengan penggemar Excel lainnya.
A5: Apa lagi yang baru? Pelanggan Office 365 mendapatkan pembaruan berkelanjutan dan fitur baru.
